bitfinex/quotes_SOLUSD_20250402
["timestamp","ask_amount","ask_price","bid_price","bid_amount"]
[1743626413450,57.20203166,127.91,127.81,7.8241]
[1743626413651,18.64964886,127.91,127.8,30.03]
[1743626413830,57.20203166,127.89,127.8,30.03]
[1743626414146,57.20203166,127.85,127.8,0.03]
[1743626414358,57.20203166,127.83,127.8,0.03]
[1743626414824,57.20203166,127.82,127.8,0.03]
[1743626415025,57.20203166,127.81,127.8,0.03]
[1743626415350,0.14216157,127.8,127.71,30.0]
[1743626415553,0.5,127.83,127.71,30.0]
[1743626415554,26.0,127.84,127.71,57.4056]
[1743626415752,18.79181043,127.83,127.71,37.83]
[1743626415935,65.02723166,127.8,127.71,37.83]
[1743626416135,19.558,127.83,127.71,27.4056]
[1743626416136,7.8235,127.82,127.71,27.4056]
[1743626416337,96.5935548,127.86,127.71,27.4056]
[1743626416338,9.39572449,127.89,127.76,26.0]
[1743626416533,57.20203166,127.86,127.76,26.0]
[1743626416765,57.20203166,127.82,127.71,43.1056]
[1743626417057,27.51146157,127.88,127.76,0.28432314]
[1743626417058,57.20203166,127.85,127.76,0.28432314]
[1743626417245,27.3693,127.88,127.75,26.0]
[1743626417246,57.20203166,127.86,127.75,26.0]
[1743626417431,57.20203166,127.83,127.72,0.28432314]
[1743626417635,57.20203166,127.81,127.71,27.4056]
[1743626417844,57.20203166,127.79,127.71,7.83]
[1743626418055,57.20203166,127.76,127.66,7.8333]
[1743626418238,57.20203166,127.76,127.66,27.4165]
[1743626418870,75.99384209,127.74,127.64,10.6530034]
[1743626419047,57.34419323,127.74,127.64,10.6530034]
[1743626419363,57.20203166,127.71,127.64,2.8191034]
[1743626419536,0.14216157,127.64,127.47,98.65622807]
[1743626419734,57.20203166,127.59,127.47,96.6822]
[1743626419936,57.20203166,127.57,127.47,57.4573]
[1743626420130,57.20203166,127.56,127.47,57.4573]
[1743626420362,11.61525523,127.64,127.47,57.4573]
[1743626420566,7.8326,127.67,127.51,0.5]
[1743626420884,287.9936,127.73,127.59,26.0]
[1743626421040,7.829,127.73,127.6,0.28432314]
[1743626421366,23.5284,127.74,127.6,0.28432314]
[1743626421543,15.7,127.76,127.64,0.42648471]
[1743626421742,57.20203166,127.75,127.63,26.0]
[1743626421928,57.20203166,127.72,127.63,26.0]
[1743626422129,57.20203166,127.7,127.53,0.5]
[1743626422328,57.20203166,127.66,127.54,19.6016]
[1743626422533,57.20203166,127.64,127.54,19.6016]
[1743626422768,57.20203166,127.65,127.54,19.6016]
[1743626422969,11.61525523,127.71,127.58,0.14216157]
[1743626423131,7.8299,127.72,127.6,0.14216157]
[1743626423436,7.8278,127.75,127.63,26.42648471]
[1743626423641,65.02983166,127.75,127.65,26.0]
[1743626423846,65.20684531,127.75,127.65,26.0]
[1743626424043,57.37904531,127.74,127.66,7.8333]
[1743626424459,65.20684531,127.75,127.66,7.8333]
[1743626424682,57.37904531,127.75,127.66,7.8333]
[1743626424882,57.37904531,127.74,127.66,7.8333]
[1743626425083,43.0952,127.76,127.66,7.8333]
[1743626425084,57.37904531,127.73,127.66,7.8333]
[1743626425371,61.88701043,127.76,127.63,19.5874]
[1743626425372,23.5273,127.76,127.64,27.4208]
[1743626425587,57.39313192,127.74,127.64,27.4208]
[1743626425760,57.39313192,127.73,127.64,27.4208]
[1743626426265,7.8293,127.73,127.64,27.4208]
[1743626426465,57.39313192,127.72,127.64,7.8345]
[1743626426782,15.7,127.76,127.64,27.4208]
[1743626427084,57.39313192,127.65,127.53,0.14216157]
[1743626427253,18.79181043,127.67,127.53,43.2144]
[1743626427453,57.39313192,127.6,127.53,7.8412]
[1743626427951,57.39313192,127.59,127.45,27.4617]
[1743626428160,73.09313192,127.62,127.45,27.4617]
[1743626428161,57.39313192,127.58,127.45,27.4617]
[1743626428357,15.7,127.62,127.45,67.1927]
[1743626428667,15.7,127.62,127.53,0.28432314]
[1743626428858,15.7,127.62,127.53,0.14216157]
[1743626429048,57.39313192,127.64,127.53,0.14216157]
[1743626429250,0.14216157,127.71,127.57,26.28432314]
[1743626429483,57.39313192,127.68,127.57,26.28432314]
[1743626429674,57.39313192,127.71,127.61,26.0]
[1743626430258,57.39313192,127.72,127.62,27.4251]
[1743626430474,8.77823064,127.73,127.62,27.4251]
[1743626430675,8.77823064,127.73,127.65,26.0]
[1743626430886,57.39313192,127.74,127.63,0.28432314]
[1743626431174,57.39313192,127.75,127.63,19.07613357]
[1743626431357,7.686e-05,127.6,127.58,39.1883]
[1743626431561,57.39313192,127.71,127.6,15.72]
[1743626431762,0.14216157,127.69,127.55,0.14216157]
[1743626431959,57.39313192,127.63,127.47,18.65547688]
[1743626432170,15.72,127.62,127.49,30.0]
[1743626432484,26.62461043,127.67,127.53,44.79181043]
[1743626432686,26.62461043,127.67,127.5,85.45831043]
[1743626432687,57.39313192,127.61,127.5,7.8431]
[1743626432868,0.14216157,127.67,127.5,7.8431]
[1743626433069,15.72,127.68,127.51,0.14216157]
[1743626433272,15.72,127.68,127.54,44.79181043]
[1743626433458,15.72,127.68,127.6,0.14216157]
[1743626433664,15.72,127.7,127.6,19.07613357]
[1743626434270,57.39313192,127.69,127.61,7.8363]
[1743626434786,15.72,127.7,127.61,27.4272]
[1743626434972,73.11313192,127.7,127.61,7.8363]
[1743626435666,15.72,127.7,127.61,7.8363]
[1743626436183,15.72,127.7,127.61,19.5909]
[1743626436378,15.72,127.7,127.62,0.28432314]
[1743626436586,73.11313192,127.7,127.6,0.28432314]
[1743626436766,73.11313192,127.7,127.59,7.8376]
[1743626436767,15.72,127.7,127.59,7.8376]
[1743626436974,15.72,127.7,127.61,26.0]
[1743626437590,65.22283192,127.72,127.61,26.0]
[1743626437762,15.72,127.69,127.61,26.0]
[1743626437957,15.72,127.69,127.6,19.07613357]
[1743626438157,15.72,127.69,127.63,26.0]
[1743626438366,15.72,127.72,127.61,27.4272]
[1743626439195,73.11313192,127.72,127.61,7.8363]
[1743626439366,57.39313192,127.71,127.61,7.8363]
[1743626439767,73.11313192,127.72,127.61,7.8363]
[1743626439967,27.395,127.76,127.62,0.42648471]
[1743626440179,15.72,127.72,127.62,19.07613357]
[1743626440377,57.39313192,127.66,127.57,7.8388]
[1743626440576,57.39313192,127.64,127.48,0.5]
[1743626440767,15.72,127.65,127.53,26.0]
[1743626440980,15.72,127.65,127.5,30.0]
[1743626440981,73.11313192,127.65,127.5,30.0]
[1743626441177,57.39313192,127.64,127.5,30.0]
[1743626441490,57.39313192,127.64,127.51,0.14216157]
[1743626441791,15.72,127.65,127.54,27.4422]
[1743626441792,80.94723192,127.65,127.54,27.4422]
[1743626441998,7.8306,127.71,127.55,0.28432314]
[1743626442161,7.8306,127.71,127.57,26.0]
[1743626442162,57.39313192,127.69,127.57,26.0]
[1743626442362,57.39313192,127.66,127.55,0.28432314]
[1743626442564,57.39313192,127.66,127.54,27.4422]
[1743626442565,57.39313192,127.64,127.54,27.4422]
[1743626442760,15.7,127.63,127.54,7.8406]
[1743626442965,0.14216157,127.62,127.51,7.8425]
[1743626443187,15.7,127.63,127.52,0.28432314]
[1743626443406,15.7,127.63,127.51,7.8425]
[1743626443592,15.7,127.63,127.53,0.28432314]
[1743626443885,15.7,127.72,127.6,0.14216157]
[1743626444083,7.8284,127.74,127.64,0.28432314]
[1743626444384,15.7,127.8,127.66,18.79181043]
[1743626444584,57.39313192,127.79,127.67,0.28432314]
[1743626445270,57.39313192,127.79,127.69,26.0]
[1743626445971,73.09313192,127.8,127.7,27.4079]
[1743626446172,57.39313192,127.79,127.7,7.8308]
[1743626446665,23.5248,127.8,127.7,7.8308]
[1743626446870,7.8242,127.81,127.71,0.28432314]
[1743626447072,57.39313192,127.8,127.7,7.8308]
[1743626447677,57.39313192,127.78,127.7,7.8308]
[1743626447895,65.21963192,127.77,127.67,7.8326]
[1743626448191,57.39313192,127.72,127.61,7.8363]
[1743626448492,73.09313192,127.73,127.62,0.14216157]
[1743626448876,57.39313192,127.68,127.58,7.8382]
[1743626449190,57.39313192,127.67,127.58,7.8382]
[1743626449499,57.39313192,127.68,127.58,7.8382]
[1743626449795,7.8308,127.7,127.56,7.8394]
[1743626449995,57.39313192,127.69,127.56,27.438]
[1743626450193,7.8308,127.7,127.56,27.438]
[1743626450395,57.39313192,127.68,127.56,27.438]
[1743626450696,7.8304,127.71,127.6,26.0]
[1743626450995,65.22353192,127.71,127.61,0.28432314]
[1743626451197,57.39313192,127.71,127.6,26.0]
[1743626451493,57.39313192,127.7,127.6,26.0]
[1743626451793,0.42648471,127.72,127.6,26.0]
[1743626451995,7.8302,127.71,127.61,7.8363]
[1743626452193,43.47,127.69,127.52,7.8417]
[1743626452394,66.557,127.71,127.52,7.8417]
[1743626452395,36.67527745,127.71,127.52,7.8417]
[1743626452588,15.7,127.7,127.53,0.14216157]
[1743626452790,15.7,127.7,127.59,26.0]
[1743626452993,57.53529349,127.69,127.51,269.22]
[1743626453184,57.39313192,127.66,127.53,18.64964886]
[1743626453586,57.39313192,127.66,127.56,26.0]
[1743626453792,57.39313192,127.63,127.52,27.4464]
[1743626454096,18.64964886,127.64,127.49,39.38856157]
[1743626454097,57.39313192,127.61,127.5,27.4509]
[1743626454479,57.39313192,127.61,127.5,7.8431]
[1743626454674,57.39313192,127.6,127.5,7.8431]
[1743626454879,76.04278078,127.61,127.5,7.8431]
[1743626455294,57.39313192,127.6,127.5,27.4509]
[1743626455487,0.14216157,127.61,127.5,27.4509]
[1743626455703,0.14216157,127.61,127.49,0.03]
[1743626455704,57.39313192,127.55,127.49,0.03]
[1743626455886,7.8398,127.56,127.49,0.03]
[1743626456087,7.8369,127.6,127.49,0.03]
[1743626456396,57.39313192,127.57,127.49,0.03]
[1743626456599,57.39313192,127.58,127.49,0.03]
[1743626456799,15.7,127.62,127.51,19.07613357]
[1743626457100,15.7,127.62,127.51,0.42648471]
[1743626457302,7.8353,127.63,127.51,0.42648471]
[1743626457502,15.7,127.62,127.53,18.933972]
[1743626457679,57.39313192,127.54,127.49,0.03]
[1743626457884,15.7,127.57,127.49,0.03]
[1743626458080,15.7,127.57,127.5,0.14216157]
[1743626458698,15.7,127.57,127.49,44.963972]
[1743626458887,15.7,127.62,127.5,0.14216157]
[1743626459387,15.7,127.62,127.49,44.963972]
[1743626459388,57.39313192,127.67,127.58,26.0]
[1743626459803,57.39313192,127.62,127.49,0.17216157]
[1743626460005,57.39313192,127.63,127.53,27.4444]
[1743626460192,57.39313192,127.62,127.53,7.8412]
[1743626460395,15.7,127.61,127.53,7.8412]
[1743626460587,15.7,127.61,127.49,0.03]
[1743626460588,0.14216157,127.6,127.5,7.8431]
[1743626460784,57.39313192,127.55,127.49,0.03]
[1743626460989,57.39313192,127.53,127.49,0.03]
[1743626461205,284.54,127.61,127.49,7.8734]
[1743626461409,284.54,127.61,127.49,7.8736]
[1743626461704,26.0,127.58,127.49,7.8736]
[1743626461891,57.39313192,127.57,127.49,0.03]
[1743626462087,57.39313192,127.56,127.49,0.03]
[1743626462288,284.82432314,127.61,127.49,0.03]
[1743626462484,26.62871043,127.6,127.49,0.03]
[1743626462710,57.39313192,127.54,127.49,0.03]
[1743626463316,57.39313192,127.53,127.49,0.03]
[1743626463895,73.09313192,127.54,127.49,0.03]
[1743626464109,15.7,127.54,127.49,0.03]
[1743626464504,73.09313192,127.54,127.49,0.03]
[1743626464712,15.7,127.54,127.49,0.03]
[1743626465821,57.39313192,127.53,127.49,0.03]
[1743626466127,57.39313192,127.5,127.49,0.03]
[1743626466332,133.57807427,127.5,127.4,27.4724]
[1743626466507,57.39313192,127.46,127.4,27.4724]
[1743626466813,57.39313192,127.46,127.4,7.8492]
[1743626467018,57.39313192,127.46,127.39,10.6687034]
[1743626467714,15.7,127.47,127.39,10.6687034]
[1743626468104,15.7,127.47,127.39,2.8191034]
[1743626468105,23.545,127.47,127.39,2.8191034]
[1743626468297,57.39313192,127.41,127.39,2.8191034]
[1743626468499,23.545,127.47,127.39,2.8191034]
[1743626468699,57.39313192,127.43,127.39,2.8191034]
[1743626468915,23.545,127.47,127.39,2.8191034]
[1743626469118,57.39313192,127.45,127.39,10.6689034]
[1743626469323,15.7,127.47,127.39,10.6689034]
[1743626469638,15.7,127.47,127.39,30.2936034]
[1743626469917,73.09313192,127.47,127.39,30.2936034]
[1743626470124,73.09313192,127.47,127.39,10.6689034]
[1743626470515,57.39313192,127.46,127.39,10.6689034]
[1743626470907,57.39313192,127.46,127.39,10.6989034]
[1743626471107,57.39313192,127.46,127.39,2.8491034]
[1743626471323,57.39313192,127.44,127.39,2.8491034]
[1743626471699,57.39313192,127.46,127.39,2.8491034]
[1743626471898,57.39313192,127.45,127.39,2.8491034]
[1743626472120,57.39313192,127.45,127.39,10.6988034]
[1743626472607,57.39313192,127.46,127.39,10.6988034]
[1743626472803,57.39313192,127.45,127.39,10.6988034]
[1743626474023,15.7,127.56,127.44,27.74812314]
[1743626474323,73.09313192,127.56,127.44,27.74812314]
[1743626474499,73.09313192,127.56,127.45,18.79181043]
[1743626474802,73.09313192,127.56,127.44,27.74812314]
[1743626475000,57.39313192,127.55,127.44,27.74812314]
[1743626475202,57.39313192,127.53,127.44,7.8468]
[1743626475404,57.39313192,127.52,127.44,7.8468]
[1743626475603,57.39313192,127.51,127.4,7.8492]
[1743626475824,18.79181043,127.55,127.41,18.79181043]
[1743626476015,65.23653192,127.5,127.4,27.4724]
[1743626476325,7.8434,127.5,127.4,27.4724]
[1743626476509,84.81479059,127.49,127.4,27.4724]
[1743626476709,15.7,127.49,127.4,27.4724]
[1743626477014,69.11479059,127.47,127.4,7.8492]
[1743626477817,69.11479059,127.46,127.4,7.8492]
[1743626478018,76.96099059,127.45,127.39,2.8491034]
[1743626478321,69.11479059,127.44,127.39,2.8491034]
[1743626478517,69.11479059,127.42,127.39,2.8491034]
[1743626478716,69.11479059,127.43,127.39,2.8491034]
[1743626479012,69.11479059,127.44,127.39,2.8491034]
[1743626479529,69.11479059,127.45,127.39,10.6988034]
[1743626480133,7.8468,127.44,127.39,2.8491034]
[1743626480540,76.96159059,127.44,127.39,2.8491034]
[1743626480723,69.11479059,127.44,127.39,2.8491034]
[1743626481039,7.8464,127.45,127.39,2.8491034]
[1743626481040,69.11479059,127.42,127.39,2.8491034]
[1743626481204,69.11479059,127.44,127.39,2.8491034]
[1743626481407,7.8464,127.45,127.39,2.8491034]
[1743626481408,69.11479059,127.42,127.39,2.8491034]
[1743626481714,15.68,127.43,127.39,10.6988034]
[1743626482219,15.68,127.43,127.39,2.8491034]
[1743626482429,92.64219059,127.43,127.39,2.8491034]
[1743626482914,84.79479059,127.43,127.39,2.8491034]
[1743626483107,15.68,127.43,127.39,10.6989034]
[1743626483512,15.68,127.43,127.39,2.8491034]
[1743626483712,92.64219059,127.43,127.39,2.8491034]
[1743626483906,15.68,127.43,127.39,2.8491034]
[1743626484125,15.68,127.43,127.39,10.6985034]
[1743626484522,92.64239059,127.43,127.39,2.8491034]
[1743626484913,69.11479059,127.42,127.39,2.8491034]
[1743626485319,84.79479059,127.43,127.39,2.8491034]
[1743626485515,23.5275,127.43,127.39,2.8491034]
[1743626485715,0.14216157,127.39,127.24,19.6479]
[1743626485930,69.11479059,127.34,127.25,30.0]
[1743626486129,0.5,127.33,127.13,42.1466034]
[1743626486332,69.11479059,127.24,127.13,42.1466034]
[1743626486531,15.68,127.23,127.13,42.1466034]
[1743626487034,15.68,127.23,127.14,27.5286]
[1743626487035,69.11479059,127.22,127.14,27.5286]
[1743626487234,15.68,127.23,127.13,10.6848034]
[1743626487425,69.11479059,127.2,127.13,10.6848034]
[1743626487620,15.68,127.23,127.13,10.6848034]
[1743626488036,69.11479059,127.24,127.13,10.6848034]
[1743626488335,15.68,127.28,127.17,18.933972]
[1743626488521,15.68,127.28,127.14,18.933972]
[1743626488522,69.11479059,127.26,127.14,18.933972]
[1743626488724,69.11479059,127.25,127.13,69.6795034]
[1743626489041,69.11479059,127.26,127.13,30.3497034]
[1743626489242,18.79181043,127.25,127.13,30.3497034]
[1743626489443,69.11479059,127.2,127.13,10.6848034]
[1743626489738,15.68,127.19,127.13,10.6848034]
[1743626490217,15.68,127.19,127.13,2.8191034]
[1743626490619,15.68,127.19,127.13,10.6848034]
[1743626490826,84.79479059,127.19,127.13,10.6848034]
[1743626491035,15.68,127.19,127.13,10.6848034]
[1743626491347,15.68,127.2,127.13,10.6848034]
[1743626491929,84.79479059,127.2,127.13,10.6848034]
[1743626492122,23.5418,127.2,127.13,10.6849034]
[1743626492321,69.11479059,127.17,127.13,2.8191034]
[1743626492524,69.11479059,127.15,127.13,2.8191034]
[1743626493036,18.79181043,127.19,127.13,2.8191034]
[1743626493245,0.28432314,127.18,127.13,2.8191034]
[1743626493541,69.25695216,127.14,127.13,2.8191034]
[1743626493739,69.11479059,127.14,127.13,2.8191034]
[1743626493942,15.68,127.14,127.13,2.8191034]
[1743626494828,23.5453,127.14,127.13,2.8191034]
[1743626495157,15.68,127.14,127.13,2.8191034]
[1743626496052,23.68746157,127.14,127.13,2.8191034]
[1743626496221,23.68746157,127.14,127.04,7.8714]
[1743626496222,18.79181043,127.13,127.04,7.8714]
[1743626496429,43.2086,127.14,127.04,7.8714]
[1743626496640,69.11479059,127.11,127.02,7.8727]
[1743626496847,19.07613357,127.13,127.02,7.8727]
[1743626497055,26.5,127.1,127.0,9.3735]
[1743626497256,69.11479059,127.05,127.0,1.5]
[1743626497427,15.7,127.04,127.0,1.5]
[1743626497621,15.7,127.03,127.0,1.0]
[1743626497825,269.66,127.11,127.0,54.5588]
[1743626497826,338.77479059,127.11,127.0,54.5588]
[1743626498023,338.77479059,127.11,127.0,28.5888]
[1743626498252,0.14216157,127.15,127.02,0.28432314]
[1743626498523,69.11479059,127.08,127.0,1.03]
[1743626498738,7.8653,127.14,127.0,8.8739]
[1743626498956,69.11479059,127.12,127.01,0.28432314]
[1743626499164,69.11479059,127.12,127.0,28.5589]
[1743626499323,69.11479059,127.11,127.0,28.5589]
[1743626499659,69.11479059,127.09,127.0,8.8739]
[1743626499873,69.11479059,127.08,127.0,1.0]
[1743626500074,95.11479059,127.06,127.0,1.0]
[1743626500279,15.7,127.05,127.0,1.0]
[1743626500439,15.7,127.05,127.0,8.874]
[1743626500759,69.11479059,127.03,127.0,1.0]
[1743626501157,15.7,127.05,127.0,0.5737]
[1743626501358,69.11479059,127.01,127.0,0.5737]
[1743626502144,76.98809059,127.01,127.0,0.5737]
[1743626502340,69.11479059,127.02,127.0,0.5737]
[1743626502540,7.8721,127.03,127.0,0.5737]
[1743626502979,69.11479059,127.01,127.0,0.5737]
[1743626503520,7.8721,127.03,127.0,0.5737]
[1743626503884,69.11479059,127.02,127.0,0.5737]
[1743626504045,69.11479059,127.01,127.0,0.5737]
[1743626504244,76.98809059,127.01,127.0,0.5737]
[1743626504485,26.0,126.94,126.87,2.8191034]
[1743626504647,69.11479059,126.9,126.87,2.8191034]
[1743626504841,15.7,126.93,126.87,2.8191034]
[1743626505044,15.7,126.93,126.87,2.3191034]
[1743626505672,84.81479059,126.92,126.87,2.3191034]
[1743626506273,15.7,126.92,126.87,2.3191034]
[1743626506445,69.11479059,126.91,126.87,2.3191034]
[1743626506645,15.7,126.9,126.87,2.3191034]
[1743626506875,15.7,126.91,126.87,2.3191034]
[1743626507050,15.7,126.93,126.87,10.2007034]
[1743626507465,15.7,126.98,126.87,29.9059034]
[1743626507662,84.81479059,126.98,126.87,69.3163034]
[1743626507860,15.7,126.98,126.87,69.3163034]
[1743626508267,69.11479059,126.95,126.87,10.2007034]
[1743626508663,69.11479059,126.92,126.87,2.3191034]
[1743626508869,23.5753,126.98,126.87,10.2010034]
[1743626508870,69.11479059,126.94,126.87,10.2010034]
[1743626509074,69.11479059,126.93,126.87,10.2010034]
[1743626509385,69.11479059,126.94,126.87,29.9062034]
[1743626509586,69.11479059,126.95,126.87,29.9062034]
[1743626509792,15.7,126.98,126.87,29.9062034]
[1743626509793,69.11479059,126.94,126.87,29.9062034]
[1743626510091,69.11479059,126.95,126.87,29.9062034]
[1743626510400,69.11479059,126.9,126.87,2.3191034]
[1743626510692,15.7,126.9,126.87,2.3491034]
[1743626511268,0.063,126.93,126.87,10.2306034]
[1743626511461,0.063,126.93,126.87,29.9358034]
[1743626511979,0.063,126.93,126.88,19.07613357]
[1743626512293,0.063,126.93,126.87,29.9358034]
[1743626512468,0.063,126.93,126.87,10.2306034]
[1743626512671,69.11479059,126.91,126.87,2.3491034]
[1743626513670,0.063,126.93,126.87,2.3491034]
[1743626513872,0.063,126.93,126.87,10.2306034]
[1743626514062,0.063,126.93,126.88,0.28432314]
[1743626514265,0.063,126.93,126.87,2.3491034]
[1743626514464,0.063,126.93,126.88,7.8814]
[1743626514971,0.063,126.93,126.89,19.07613357]
[1743626515175,0.063,126.93,126.89,0.28432314]
[1743626515475,0.063,126.93,126.89,19.07613357]
[1743626516076,7.87,127.07,126.93,0.14216157]
[1743626516308,15.7,127.07,126.95,19.07613357]
[1743626516486,15.7,127.07,126.98,26.0]
[1743626516685,15.7,127.07,126.99,18.933972]
[1743626516896,15.7,127.07,126.94,66.9606]
[1743626517094,15.7,127.07,126.95,19.07613357]
[1743626517307,15.7,127.07,126.98,26.0]
[1743626517623,20.0,127.21,127.03,0.42648471]
[1743626517911,69.65374914,127.14,127.03,18.79181043]
[1743626518072,26.0,127.16,127.04,0.28432314]
[1743626518274,69.65374914,127.11,127.02,19.6817]
[1743626518480,15.7,127.11,127.01,0.28432314]
[1743626518708,69.65374914,127.1,127.01,26.0]
[1743626519002,15.7,127.11,127.01,26.0]
[1743626519206,15.7,127.11,127.0,26.0]
[1743626519622,69.65374914,127.1,127.0,26.0]
[1743626519910,69.65374914,127.08,126.98,19.6881]
[1743626520109,15.7,127.11,126.98,19.6881]
[1743626520491,42.21684886,127.11,126.97,7.8758]
[1743626520818,69.60748279,126.99,126.88,27.585]
[1743626520995,69.60748279,126.96,126.88,34.4914]
[1743626521312,69.60748279,126.89,126.86,37.74]
[1743626521479,15.68,127.03,126.86,37.74]
[1743626521689,69.60748279,127.0,126.89,26.0]
[1743626522012,69.60748279,127.0,126.86,37.74]
[1743626522013,69.60748279,126.98,126.86,37.74]
[1743626522176,69.60748279,126.95,126.87,10.2308034]
[1743626522405,15.68,126.96,126.87,10.2308034]
[1743626522735,23.5542,127.0,126.87,29.9360034]
[1743626523032,15.68,127.0,126.88,18.79181043]
[1743626523212,15.68,127.0,126.89,0.28432314]
[1743626523419,15.68,127.0,126.92,0.28432314]
[1743626523817,69.60748279,127.03,126.92,19.07613357]
[1743626524140,0.063,126.95,126.92,19.07613357]
[1743626524437,0.063,126.95,126.94,0.28432314]
[1743626524805,0.063,126.95,126.93,7.8783]
[1743626525028,69.67048279,126.95,126.88,7.8814]
[1743626525340,69.60748279,126.91,126.87,2.3491034]
[1743626525507,69.60748279,126.89,126.87,2.3491034]
[1743626525709,69.60748279,126.9,126.87,2.3491034]
[1743626525921,15.68,126.91,126.87,2.3491034]
[1743626526119,15.68,126.91,126.87,10.2311034]
[1743626526433,0.063,126.95,126.92,7.8789]
[1743626526611,0.063,126.95,126.9,7.8802]
[1743626527027,0.063,126.95,126.91,0.28432314]
[1743626527229,0.063,126.95,126.9,27.5807]
[1743626527724,0.063,126.95,126.91,0.28432314]
[1743626527931,23.69196157,127.07,126.94,26.0]
[1743626528239,23.69196157,127.07,126.95,19.07613357]
[1743626528240,15.68,127.07,126.95,19.07613357]
[1743626528560,69.60748279,127.04,126.96,7.8764]
[1743626528738,69.60748279,127.03,126.96,7.8764]
[1743626528906,69.60748279,127.05,126.96,27.5676]
[1743626529103,69.60748279,127.06,126.97,0.28432314]
[1743626529321,69.60748279,127.05,126.96,27.5676]
[1743626529527,69.60748279,127.03,126.96,27.5676]
[1743626529713,69.60748279,127.03,126.96,7.8764]
[1743626529939,7.8688,127.09,126.97,0.28432314]
[1743626530127,69.60748279,127.06,126.97,0.28432314]
[1743626530432,103.47858279,127.05,126.96,19.6912]
[1743626530617,69.60748279,127.03,126.95,7.8771]
[1743626530927,15.68,127.03,126.95,7.8771]
[1743626531126,69.60748279,127.01,126.95,7.8771]
[1743626531317,69.60748279,127.01,126.93,7.8783]
[1743626531830,15.68,127.03,126.93,7.8783]
[1743626532021,69.60748279,127.01,126.93,7.8783]
[1743626532218,69.60748279,126.99,126.9,7.8802]
[1743626532425,77.48228279,126.99,126.89,19.7006]
[1743626532937,69.60748279,126.97,126.88,7.8814]
[1743626533118,69.60748279,126.95,126.88,7.8814]
[1743626533517,69.60748279,126.94,126.88,7.8814]
[1743626533720,85.28748279,126.96,126.88,27.585]
[1743626534040,15.68,126.96,126.88,27.585]
[1743626534733,270.18,127.02,126.89,19.07613357]
[1743626534734,85.26748279,127.01,126.89,19.07613357]
[1743626534927,15.66,127.01,126.89,19.07613357]
[1743626535228,15.66,127.01,126.94,0.28432314]
[1743626535431,85.26748279,127.06,126.94,19.07613357]
[1743626535633,0.063,126.98,126.94,19.07613357]
[1743626536230,15.66,127.06,126.94,19.07613357]
[1743626536632,69.60748279,127.03,126.95,66.9553]
[1743626536827,69.60748279,127.05,126.95,66.9553]
[1743626537420,85.26748279,127.06,126.96,0.28432314]
[1743626538043,15.66,127.06,126.96,0.28432314]
[1743626538544,23.5303,127.06,126.97,7.8758]
[1743626538730,15.66,127.06,126.98,0.28432314]
[1743626539222,69.60748279,127.05,126.97,7.8758]
[1743626539532,15.66,127.19,127.06,26.0]
[1743626539736,15.66,127.19,127.03,0.28432314]
[1743626539935,69.60748279,127.17,127.03,0.78432314]
[1743626540147,69.60748279,127.18,127.03,0.78432314]
[1743626540538,69.60748279,127.18,127.05,19.07613357]
[1743626540736,69.60748279,127.17,127.05,19.07613357]
[1743626540936,18.64964886,127.17,127.05,0.28432314]
[1743626541140,69.60748279,127.18,127.05,19.07613357]
[1743626541437,93.12988279,127.19,127.05,19.07613357]
[1743626541628,69.60748279,127.18,127.09,0.28432314]
[1743626541937,69.60748279,127.19,127.09,0.28432314]
[1743626542136,23.5212,127.21,127.09,0.28432314]
[1743626542435,355.44748279,127.24,127.13,0.28432314]
[1743626542617,285.84,127.24,127.14,27.5286]
[1743626542825,15.66,127.24,127.15,19.07613357]
[1743626543135,7.8511,127.37,127.17,0.28432314]
[1743626543341,69.60748279,127.24,127.14,27.5286]
[1743626543562,18.79181043,127.25,127.14,7.8653]
[1743626543833,26.0,127.22,127.12,7.8665]